bitfinex/quotes_SOLUSD_20240712
["timestamp","ask_amount","ask_price","bid_price","bid_amount"]
[1720792446771,10.0,138.97,138.85,22.2254]
[1720792446977,20.0,138.96,138.86,45.0]
[1720792447496,20.0,138.98,138.86,45.0]
[1720792448600,10.0,138.99,138.86,45.0]
[1720792450392,10.0,138.97,138.86,45.0]
[1720792450601,10.0,138.99,138.86,45.0]
[1720792451103,10.0,138.99,138.87,15.9132]
[1720792451289,10.0,138.99,138.88,65.0]
[1720792453011,12.19980297,139.01,138.88,65.0]
[1720792453294,12.19980297,139.01,138.89,6.2865]
[1720792453603,5.54470297,139.01,138.9,45.0]
[1720792454475,2.47608054,139.01,138.9,45.0]
[1720792454672,3.06862243,139.0,138.91,16.1538]
[1720792454892,3.06862243,139.0,138.92,45.0]
[1720792455784,3.06862243,139.0,138.93,1.37096458]
[1720792456485,3.06862243,139.0,138.92,45.0]
[1720792456680,10.0,138.99,138.91,15.6239]
[1720792456882,33.24,138.98,138.91,15.6239]
[1720792457081,53.24,138.98,138.91,15.6239]
[1720792457697,10.0,138.97,138.91,15.6239]
[1720792458794,53.24,138.98,138.91,15.6239]
[1720792458795,20.0,138.98,138.91,15.6239]
[1720792458998,33.24,138.99,138.91,15.6239]
[1720792458999,10.0,138.97,138.91,15.6239]
[1720792459786,10.0,138.95,138.91,15.6239]
[1720792460192,10.0,138.97,138.91,15.6239]
[1720792460596,10.0,138.95,138.91,15.6239]
[1720792460792,33.24,138.99,138.91,15.6239]
[1720792460793,10.0,138.97,138.91,15.6239]
[1720792463299,43.24,138.97,138.91,15.6239]
[1720792463718,33.24,138.97,138.91,15.6239]
[1720792465902,10.0,138.96,138.91,15.6239]
[1720792466101,33.24,138.97,138.91,15.6239]
[1720792466405,9.59711511,139.02,138.8,24.20091072]
[1720792466406,0.2,139.09,138.97,15.2673]
[1720792466611,0.2,139.09,138.98,87.93162972]
[1720792466931,0.2,139.09,138.99,1.43844326]
[1720792467096,0.2,139.09,139.0,21.26087157]
[1720792467288,0.2,139.09,139.01,46.4382363]
[1720792467599,0.2,139.09,139.02,1.4383523]
[1720792469318,0.2,139.09,139.01,46.43825923]
[1720792469497,0.2,139.09,139.01,45.0]
[1720792469996,0.2,139.09,139.02,0.68044216]
[1720792470418,0.2,139.09,139.01,45.0]
[1720792470896,0.2,139.09,139.02,0.75645295]
[1720792471097,0.2,139.09,139.01,45.0]
[1720792471737,0.2,139.09,138.98,20.2323]
[1720792471738,0.2,139.09,138.99,1.43848063]
[1720792474094,0.2,139.09,138.99,46.43848063]
[1720792474312,0.2,139.09,139.0,20.0]
[1720792474617,0.2,139.09,139.01,46.43827128]
[1720792474817,0.2,139.09,139.02,1.4380223]
[1720792475019,0.2,139.09,139.02,21.4380223]
[1720792475321,0.2,139.09,139.03,46.437952]
[1720792475505,0.2,139.09,139.04,20.0]
[1720792475705,0.2,139.09,139.05,46.43774517]
[1720792475910,10.8701313,139.18,139.06,36.9242]
[1720792476120,0.8701313,139.18,139.07,46.43753881]
[1720792476329,0.8701313,139.18,139.08,21.43741967]
[1720792476623,0.8701313,139.18,139.01,259.1]
[1720792476624,10.0,139.14,139.03,1.43732639]
[1720792476802,16.5363,139.17,138.98,27.9097]
[1720792476803,26.5363,139.17,138.99,20.0]
[1720792477126,0.8701313,139.18,139.0,24.08539771]
[1720792477323,10.0,139.12,139.01,1.43774269]
[1720792477626,10.0,139.14,139.0,22.6475]
[1720792478122,10.8701313,139.18,139.0,22.6475]
[1720792478314,0.8701313,139.18,139.0,22.6475]
[1720792478622,10.8701313,139.18,139.0,44.3675]
[1720792478828,0.8701313,139.18,139.0,44.3675]
[1720792479003,0.8701313,139.18,139.01,41.72]
[1720792479004,20.8701313,139.18,139.01,41.72]
[1720792479200,0.8701313,139.18,139.03,21.72]
[1720792479416,0.8701313,139.18,139.04,65.0]
[1720792480106,0.8701313,139.18,139.04,86.72]
[1720792480919,0.8701313,139.18,139.05,6.1636]
[1720792481223,0.8701313,139.18,139.07,15.8964]
[1720792481425,0.8701313,139.18,139.08,72.60071444]
[1720792481724,0.8701313,139.18,139.08,71.1636]
[1720792482019,0.8701313,139.18,139.08,26.1636]
[1720792482425,0.8701313,139.18,139.08,47.8836]
[1720792482612,0.8701313,139.18,139.09,15.8964]
[1720792482810,0.8701313,139.18,139.1,21.43701865]
[1720792483014,0.8701313,139.18,139.11,45.0]
[1720792483227,0.8701313,139.18,139.12,21.43702691]
[1720792483529,0.8701313,139.18,139.13,45.0]
[1720792483727,0.8701313,139.18,139.14,1.43707964]
[1720792484109,0.8701313,139.18,139.13,46.4371318]
[1720792484329,0.8701313,139.18,139.13,45.0]
[1720792484534,0.8701313,139.18,139.09,15.8964]
[1720792485140,10.8701313,139.18,139.09,15.8964]
[1720792485309,10.8701313,139.18,139.08,6.1636]
[1720792485928,0.8701313,139.18,139.08,6.1636]
[1720792486137,0.8701313,139.18,139.09,15.5309]
[1720792487016,0.8701313,139.18,139.1,45.0]
[1720792487218,0.8701313,139.18,139.11,20.0]
[1720792487424,0.8701313,139.18,139.12,46.27037048]
[1720792487609,0.8701313,139.18,139.14,6.6076]
[1720792487805,0.8701313,139.18,139.15,66.43561842]
[1720792488332,0.8701313,139.18,139.15,65.0]
[1720792488720,0.8701313,139.18,139.16,1.43579244]
[1720792488948,0.8701313,139.18,139.15,65.0]
[1720792489839,0.8701313,139.18,139.16,1.26808169]
[1720792491627,0.8701313,139.18,139.16,1.43687068]
[1720792492228,0.8701313,139.18,139.17,15.1149]
[1720792492428,0.8701313,139.18,139.17,80.1149]
[1720792492633,0.8701313,139.18,139.17,65.0]
[1720792493030,0.8701313,139.18,139.03,21.1505]
[1720792493031,10.0,139.16,139.03,21.1505]
[1720792493339,7.1887,139.11,139.03,21.1505]
[1720792493512,10.8701313,139.18,139.03,21.1505]
[1720792493711,0.8701313,139.18,139.04,1.43777948]
[1720792493916,7.1855,139.17,139.04,23.15777948]
[1720792494311,8.0552313,139.18,139.04,23.15777948]
[1720792494947,0.8701313,139.18,139.05,20.0]
[1720792495244,0.8701313,139.18,139.03,21.1505]
[1720792495245,7.1861,139.16,139.06,1.43753533]
[1720792495417,0.8701313,139.18,139.04,20.0]
[1720792495738,10.8701313,139.18,139.04,20.0]
[1720792495919,0.8701313,139.18,139.03,21.1505]
[1720792496328,7.1865,139.15,139.03,21.1505]
[1720792496538,0.8701313,139.18,139.03,21.1505]
[1720792497137,7.186,139.16,139.03,42.8705]
[1720792497320,0.8701313,139.18,139.04,20.0]
[1720792497521,0.8701313,139.18,139.04,41.72]
[1720792497732,8.0551313,139.18,139.05,0.96872362]
[1720792497916,0.8701313,139.18,139.05,0.96872362]
[1720792498119,0.8701313,139.18,139.07,21.72]
[1720792498332,0.8701313,139.18,139.06,21.2215]
[1720792498333,0.8701313,139.18,139.08,88.15690196]
[1720792498731,0.8701313,139.18,139.08,66.43690196]
[1720792499239,0.8701313,139.18,139.08,21.43690196]
[1720792499541,0.8701313,139.18,139.09,20.0]
[1720792499736,0.8701313,139.18,139.11,43.8695]
[1720792499940,0.8701313,139.18,139.12,21.4367116]
[1720792500317,0.8701313,139.18,139.12,20.0]
[1720792500526,0.8701313,139.18,139.13,45.0]
[1720792500725,0.8701313,139.18,139.14,20.0]
[1720792501020,0.8701313,139.18,139.15,45.0]
[1720792502025,0.8701313,139.18,139.16,20.0]
[1720792502228,0.8701313,139.18,139.17,45.0]
[1720792502446,0.8701313,139.18,139.17,65.0]
[1720792503130,0.8701313,139.18,139.17,45.0]
[1720792503939,0.8701313,139.18,139.17,65.0]
[1720792504125,0.8701313,139.18,139.09,15.3634]
[1720792504324,0.8701313,139.18,139.05,16.6148]
[1720792504527,7.1868,139.15,139.05,16.6148]
[1720792504843,7.1876,139.13,139.05,16.6148]
[1720792505019,7.1881,139.12,139.03,6.083]
[1720792505225,10.0,139.16,139.03,6.083]
[1720792505633,10.8701313,139.18,139.03,6.083]
[1720792506550,0.8701313,139.18,139.04,20.0]
[1720792506939,0.8701313,139.18,139.04,41.72]
[1720792507250,0.8701313,139.18,139.04,20.0]
[1720792507558,8.0552313,139.18,139.05,45.0]
[1720792507853,8.0552313,139.18,139.06,20.0]
[1720792508051,8.0552313,139.18,139.07,45.0]
[1720792508232,0.8701313,139.18,139.08,20.66643801]
[1720792508428,0.8701313,139.18,139.09,45.0]
[1720792508626,0.8701313,139.18,139.1,20.0]
[1720792508850,0.8701313,139.18,139.11,45.0]
[1720792509045,0.8701313,139.18,139.12,20.0]
[1720792509271,0.8701313,139.18,139.13,45.0]
[1720792509456,0.8701313,139.18,139.13,46.17625383]
[1720792509941,0.8701313,139.18,139.14,20.0]
[1720792510141,0.8701313,139.18,139.15,45.0]
[1720792510330,0.8701313,139.18,139.16,21.2047861]
[1720792510534,0.8701313,139.18,139.17,45.0]
[1720792510735,0.8701313,139.18,139.17,65.0]
[1720792511150,0.2,139.29,139.17,65.0]
[1720792511336,7.3794,139.29,139.17,65.0]
[1720792511534,0.2,139.29,139.18,20.0]
[1720792511756,7.3796,139.29,139.19,45.0]
[1720792512057,0.2,139.29,139.2,21.43629453]
[1720792512235,0.2,139.29,139.21,45.0]
[1720792512442,0.2,139.29,139.22,21.4362231]
[1720792512759,7.3794,139.29,139.23,45.0]
[1720792512962,0.2,139.29,139.23,45.0]
[1720792513149,0.2,139.29,139.24,20.0]
[1720792513337,7.3794,139.29,139.23,45.0]
[1720792513536,7.3794,139.29,139.16,15.7965]
[1720792513537,0.2,139.29,139.16,15.7965]
[1720792513740,0.2,139.29,139.17,43.15623858]
[1720792513956,7.3794,139.29,139.18,45.0]
[1720792514162,0.2,139.29,139.19,20.0]
[1720792514457,0.2,139.29,139.16,15.7965]
[1720792514640,7.1799,139.28,139.16,15.7965]
[1720792514839,10.2,139.29,139.16,15.7965]
[1720792515267,10.2,139.29,139.17,1.43655433]
[1720792515268,0.2,139.29,139.17,1.43655433]
[1720792515639,7.1803,139.27,139.17,1.43655433]
[1720792515855,7.1813,139.25,139.16,15.7965]
[1720792516046,16.415,139.28,139.16,15.7965]
[1720792516259,7.1803,139.27,139.16,15.7965]
[1720792516459,16.415,139.28,139.16,15.7965]
[1720792516851,23.5952,139.28,139.16,15.7965]
[1720792517049,7.1803,139.27,139.17,45.0]
[1720792517365,7.1799,139.28,139.18,20.0]
[1720792517546,0.2,139.29,139.19,45.0]
[1720792517744,0.2,139.29,139.2,21.43518094]
[1720792517950,0.2,139.29,139.21,45.0]
[1720792518145,7.1801,139.28,139.21,45.0]
[1720792518365,0.2,139.29,139.22,20.0]
[1720792518540,0.2,139.29,139.23,45.0]
[1720792519643,7.3796,139.29,139.23,45.0]
[1720792519843,0.2,139.29,139.23,45.0]
[1720792520065,7.3797,139.29,139.23,45.0]
[1720792520249,7.3797,139.29,139.24,45.0]
[1720792520250,0.2,139.29,139.24,45.0]
[1720792520777,10.0,139.27,139.12,10.47930555]
[1720792520953,16.0802,139.28,139.09,6.4756]
[1720792520954,10.0,139.25,139.09,6.4756]
[1720792521357,7.1829,139.22,139.11,10.479305]
[1720792521560,7.1837,139.21,139.09,6.4756]
[1720792521755,10.0,139.25,139.09,6.4756]
[1720792521756,7.1833,139.22,139.09,6.4756]
[1720792521970,7.1825,139.23,139.1,10.0]
[1720792522163,10.0,139.25,139.1,10.0]
[1720792522684,6.272,139.26,139.1,10.0]
[1720792522858,10.0,139.25,139.1,10.0]
[1720792523176,7.1837,139.21,139.1,10.0]
[1720792523372,6.272,139.26,139.1,10.0]
[1720792523575,7.1819,139.24,139.1,10.0]
[1720792523879,7.1816,139.25,139.1,31.72]
[1720792524068,6.272,139.26,139.1,31.72]
[1720792524277,16.0802,139.28,139.12,21.72]
[1720792524467,16.0802,139.28,139.14,21.72]
[1720792524664,0.2,139.29,139.15,86.72]
[1720792524869,0.2,139.29,139.15,41.72]
[1720792525067,0.2,139.29,139.17,6.6048]
[1720792525269,0.2,139.29,139.18,65.0]
[1720792525677,0.2,139.29,139.19,15.3727]
[1720792525882,0.2,139.29,139.2,65.0]
[1720792526259,0.2,139.29,139.21,1.43585802]
[1720792527765,0.2,139.29,139.22,6.2528]
[1720792528075,0.2,139.29,139.23,65.0]
[1720792530464,0.2,139.29,139.23,20.0]
[1720792531573,0.2,139.29,139.24,1.43577156]
[1720792531884,0.2,139.29,139.23,20.0]
[1720792532083,0.2,139.29,139.24,46.05543105]
[1720792532390,0.2,139.29,139.25,20.0]
[1720792532564,0.2,139.29,139.26,45.0]
[1720792532765,0.2,139.29,139.27,20.0]
[1720792532964,0.2,139.29,139.28,45.0]
[1720792533393,0.2,139.29,139.22,6.2528]
[1720792533571,0.2,139.29,139.23,20.0]
[1720792534383,0.2,139.29,139.22,6.2528]
[1720792535361,0.2,139.29,139.23,1.4360219]
[1720792535686,0.2,139.29,139.22,6.2528]
[1720792536276,0.2,139.29,139.23,0.57002557]
[1720792536485,0.2,139.29,139.23,45.0]
[1720792536667,0.2,139.29,139.24,20.0]
[1720792536867,0.2,139.29,139.25,45.0]
[1720792537073,0.2,139.29,139.26,20.0]
[1720792537389,0.2,139.29,139.27,45.0]
[1720792538168,0.2,139.29,139.22,6.2528]
[1720792538492,0.2,139.29,139.23,20.0]
[1720792538861,0.2,139.29,139.19,15.3727]
[1720792539069,0.2,139.29,139.2,0.70882596]
[1720792539366,0.2,139.29,139.2,0.70747299]
[1720792539679,7.3793,139.29,139.2,0.70747299]
[1720792540394,7.3793,139.29,139.2,20.70747299]
[1720792540695,7.3793,139.29,139.2,20.0]
[1720792540866,7.1801,139.28,139.21,1.43611736]
[1720792541071,7.3794,139.29,139.21,1.43611736]
[1720792541391,7.3794,139.29,139.19,15.3727]
[1720792541694,7.1798,139.28,139.19,15.3727]
[1720792542188,7.3794,139.29,139.19,15.3727]
[1720792542362,0.2,139.29,139.2,20.0]
[1720792542768,7.1804,139.27,139.17,20.0]
[1720792542980,0.2,139.29,139.17,20.0]
[1720792543192,7.1803,139.27,139.17,20.0]
[1720792543593,7.1798,139.28,139.17,20.0]
[1720792543969,7.1798,139.28,139.18,45.0]
[1720792544172,7.1804,139.27,139.19,20.0]
[1720792544486,15.5071,139.26,139.19,20.0]
[1720792544669,15.5071,139.26,139.15,15.3578]
[1720792545196,7.1824,139.23,139.15,15.3578]
[1720792545496,7.182,139.24,139.15,15.3578]
[1720792545683,15.5071,139.26,139.16,1.41479938]
[1720792545991,7.1839,139.2,139.11,15.8219]
[1720792546182,7.1835,139.21,139.12,0.70664045]
[1720792546398,7.1839,139.2,139.12,0.70664045]
[1720792546871,10.0,139.23,139.12,0.70664045]
[1720792547071,7.1842,139.2,139.1,17.52031985]
[1720792547278,7.184,139.2,139.1,17.52031985]
[1720792547690,7.1834,139.21,139.1,17.52031985]
[1720792547886,7.1839,139.2,139.1,17.52031985]
[1720792548081,10.0,139.2,139.1,17.52031985]
[1720792548282,7.1853,139.18,139.04,27.933]
[1720792548591,7.1853,139.18,139.07,10.0]
[1720792549406,30.0,139.19,139.07,10.0]
[1720792549576,7.1854,139.18,139.07,10.0]
[1720792549977,30.0,139.19,139.07,10.0]
[1720792550288,32.8481,139.22,139.07,10.0]
[1720792550474,32.8481,139.22,139.08,20.0]
[1720792550475,7.1844,139.19,139.08,20.0]
[1720792550680,7.1851,139.18,139.08,20.0]
[1720792551083,32.8481,139.22,139.08,20.0]
[1720792551388,7.1845,139.19,139.08,20.0]
[1720792551907,7.1851,139.18,139.08,20.0]
[1720792552082,7.1851,139.18,139.09,45.0]
[1720792552274,7.1845,139.19,139.1,20.0]
[1720792552495,7.1845,139.19,139.11,45.0]
[1720792552697,7.1835,139.21,139.12,20.0]
[1720792552898,22.8481,139.22,139.13,45.0]
[1720792553080,7.1839,139.2,139.13,45.0]
[1720792553283,22.8481,139.22,139.13,45.0]
[1720792553284,7.1837,139.21,139.13,45.0]
[1720792553483,30.0309,139.22,139.14,20.0]
[1720792553785,22.8481,139.22,139.15,45.0]
[1720792554089,22.8481,139.22,139.16,20.0]
[1720792554387,30.0311,139.22,139.16,20.0]
[1720792554788,7.1838,139.21,139.16,20.0]
[1720792555096,7.1838,139.21,139.13,21.43646211]
[1720792555279,22.8481,139.22,139.14,45.0]
[1720792555479,22.8481,139.22,139.15,20.0]
[1720792555679,22.8481,139.22,139.16,45.0]
[1720792556694,7.1818,139.25,139.16,45.0]
[1720792557082,21.8153,139.26,139.17,20.0]
[1720792557083,28.9962,139.26,139.17,20.0]
[1720792557287,7.1814,139.25,139.18,45.0]
[1720792557794,7.1819,139.24,139.18,45.0]
[1720792557993,21.8153,139.26,139.18,45.0]
[1720792558400,10.2,139.29,139.18,60.1738]
[1720792558611,7.1801,139.28,139.19,20.0]
[1720792558816,7.1801,139.28,139.2,45.0]
[1720792558980,7.1806,139.27,139.2,45.0]
[1720792559797,0.2,139.29,139.2,45.0]
[1720792560699,7.1798,139.28,139.2,45.0]
[1720792560901,0.2,139.29,139.21,20.0]
[1720792561109,7.1803,139.27,139.21,20.0]
[1720792561309,0.2,139.29,139.21,20.0]
[1720792561914,0.2,139.29,139.22,45.0]
[1720792562102,0.2,139.29,139.23,20.0]
[1720792562286,0.2,139.29,139.24,46.43604393]
[1720792562614,0.2,139.29,139.25,20.0]
[1720792563393,0.2,139.29,139.26,45.0]
[1720792563594,0.0001,139.29,139.27,26.4635]
[1720792563822,0.8701313,139.32,139.28,1.43543244]
[1720792563982,0.8701313,139.32,139.28,46.43543244]
[1720792564303,0.8701313,139.32,139.29,20.0]
[1720792564495,0.8701313,139.32,139.3,46.43551736]
[1720792564704,0.8701313,139.32,139.31,20.0]
[1720792564905,0.8701313,139.32,139.31,65.0]
[1720792565090,0.2,139.39,139.31,65.0]
[1720792565301,0.2,139.39,139.32,45.0]
[1720792565494,0.2,139.39,139.33,20.0]
[1720792566011,0.2,139.39,139.27,15.5347]
[1720792566190,7.1757,139.36,139.28,20.0]
[1720792566512,0.2,139.39,139.28,20.0]
[1720792566711,7.1752,139.37,139.28,20.0]
[1720792566904,0.2,139.39,139.28,20.0]
[1720792567108,7.1755,139.37,139.28,20.90175659]
[1720792567308,7.175,139.38,139.28,20.90175659]
[1720792567619,0.2,139.39,139.28,20.0]
[1720792567986,7.3741,139.39,139.28,20.0]
[1720792568186,0.2,139.39,139.28,20.0]
[1720792568587,0.2,139.39,139.29,45.0]
[1720792568895,0.2,139.39,139.3,20.7870064]
[1720792569102,0.2,139.39,139.31,45.0]
[1720792569324,0.8701313,139.46,139.33,14.2315]
[1720792569505,0.8701313,139.46,139.4,6.0301]
[1720792569794,0.8701313,139.46,139.41,20.0]
[1720792570010,0.8701313,139.46,139.42,46.43398636]
[1720792570192,0.8701313,139.46,139.43,20.0]
[1720792570387,0.8701313,139.46,139.33,8.2014]
[1720792570388,6.6469,139.45,139.33,8.2014]
[1720792570690,17.4291313,139.46,139.34,7.84673631]
[1720792570691,0.8701313,139.46,139.34,7.84673631]
[1720792571192,0.8701313,139.46,139.37,21.9217]
[1720792571388,0.8701313,139.46,139.4,37.32]
[1720792571590,2.30919235,139.53,139.46,16.1047313]
[1720792571591,0.76079235,139.53,139.46,16.1047313]
[1720792571841,0.2,139.59,139.47,20.0]
[1720792571995,7.1653,139.57,139.47,20.0]
[1720792572317,0.2,139.59,139.48,1.43347143]
[1720792572492,0.2,139.59,139.48,1.43302964]
[1720792572699,0.2,139.59,139.49,48.75081976]
[1720792572898,0.2,139.59,139.5,66.43285383]
[1720792573330,0.2,139.59,139.5,65.0]
[1720792573617,0.2,139.59,139.51,1.43294693]
[1720792573920,0.2,139.59,139.52,1.4328772]
[1720792574095,0.2,139.59,139.53,1.43294862]
[1720792574294,0.2,139.59,139.53,1.43296907]
[1720792574497,0.2,139.59,139.51,2.873146]
[1720792574700,7.1647,139.58,139.51,2.873146]
[1720792574903,0.2,139.59,139.41,51.3314]
[1720792575107,7.1656,139.56,139.41,51.3314]
[1720792575303,0.2,139.59,139.46,10.870131]
[1720792575304,10.0,139.58,139.46,10.870131]
[1720792575514,16.2025,139.58,139.47,1.433811]
[1720792575721,16.2025,139.58,139.42,1.43358261]
[1720792575894,7.1651,139.57,139.43,1.43363709]
[1720792576096,6.2025,139.58,139.43,1.43363709]
[1720792576499,7.1653,139.56,139.43,1.43363709]
[1720792576696,6.2025,139.58,139.44,1.43309641]
[1720792576918,6.2025,139.58,139.38,8.22869198]
[1720792576919,10.0,139.52,139.43,1.43305617]
[1720792577120,10.0,139.51,139.3,45.3]
[1720792577325,10.0,139.48,139.31,30.19263765]
[1720792577633,7.1705,139.46,139.32,1.43477069]
[1720792577802,10.0,139.48,139.32,1.43477069]
[1720792578129,17.925,139.47,139.32,1.43477594]
[1720792578306,7.1721,139.43,139.32,1.43477594]
[1720792578510,7.172,139.43,139.32,1.43477594]
[1720792578711,17.925,139.47,139.32,1.43477594]
[1720792578914,7.1726,139.42,139.32,1.43483302]
[1720792579225,27.925,139.47,139.32,1.43483302]
[1720792579426,17.9208,139.51,139.3,45.3]
[1720792579615,25.4131,139.52,139.3,45.3]
[1720792579616,22.5807,139.52,139.3,55.3]
[1720792579813,37.0231,139.52,139.34,66.91]
[1720792580031,7.1689,139.49,139.35,21.61]
[1720792580220,7.1685,139.5,139.35,21.61]
[1720792580644,7.1685,139.5,139.36,65.0]
[1720792580854,7.169,139.49,139.36,65.0]
[1720792581034,7.1683,139.51,139.36,65.0]
[1720792581352,7.1673,139.53,139.37,22.86396429]
[1720792581526,31.7956,139.58,139.39,21.61]
[1720792581730,7.1665,139.54,139.4,86.61]
[1720792581940,7.167,139.53,139.38,86.61]
[1720792582137,7.167,139.53,139.41,20.0]
[1720792582338,10.0,139.56,139.38,86.61]
[1720792582339,21.61,139.56,139.42,46.43378808]
[1720792582634,31.61,139.56,139.43,65.0]
[1720792582849,31.61,139.56,139.43,20.0]
[1720792583032,7.1681,139.51,139.44,45.0]
[1720792583232,7.1685,139.5,139.43,20.0]
[1720792583448,21.61,139.52,139.38,20.0]
[1720792583649,7.168,139.51,139.38,20.0]
[1720792583830,21.61,139.52,139.38,20.0]
[1720792584152,10.0,139.53,139.38,20.0]
[1720792584153,7.1684,139.51,139.38,20.0]
[1720792584375,7.1689,139.5,139.38,20.0]
[1720792584557,21.61,139.54,139.39,1.43407693]
[1720792584729,17.9141,139.56,139.38,20.0]
[1720792584730,7.1681,139.51,139.38,20.0]
[1720792584925,7.1688,139.5,139.38,20.0]
[1720792585130,7.1686,139.5,139.38,20.0]
[1720792585540,7.1685,139.5,139.38,20.0]
[1720792585755,7.1691,139.49,139.38,20.0]
[1720792586058,7.1706,139.46,139.39,1.43435387]
[1720792586257,21.61,139.5,139.37,21.4298]
[1720792586430,7.1694,139.49,139.37,21.4298]
[1720792586627,7.1679,139.52,139.38,1.43433123]
[1720792586835,31.7956,139.58,139.37,36.4298]
[1720792587035,21.61,139.57,139.38,21.61]
[1720792587235,31.7956,139.58,139.38,21.61]
[1720792587751,7.1649,139.57,139.38,21.61]
[1720792587959,6.2025,139.58,139.4,21.61]
[1720792588139,0.2,139.59,139.43,42.8282]
[1720792588338,0.2,139.59,139.45,66.91]
[1720792588566,0.2,139.59,139.46,86.61]
[1720792588855,0.2,139.59,139.46,45.0]
[1720792589055,0.2,139.59,139.47,20.0]
[1720792589241,0.2,139.59,139.48,45.0]
[1720792589448,0.2,139.59,139.49,20.0]
[1720792589651,0.2,139.59,139.5,45.0]
[1720792589840,7.3638,139.59,139.51,20.0]
[1720792590039,0.2,139.59,139.52,45.0]
[1720792590240,0.2,139.59,139.53,20.0]
[1720792590460,7.3638,139.59,139.53,20.0]
[1720792590636,0.2,139.59,139.53,20.0]
[1720792591349,0.2,139.59,139.53,21.4331241]
[1720792591931,0.2,139.59,139.54,45.0]
[1720792592134,0.2,139.59,139.53,20.0]
[1720792592368,0.2,139.59,139.53,21.43311333]
[1720792592959,0.2,139.59,139.54,1.43291927]
[1720792593170,0.2,139.59,139.45,41.61]
[1720792593336,0.2,139.59,139.54,1.43302162]
[1720792593536,0.2,139.59,139.45,41.61]
[1720792593938,7.3641,139.59,139.46,1.43316282]
[1720792594139,7.1643,139.58,139.46,1.43316282]
[1720792594357,0.2,139.59,139.46,1.43318455]
[1720792594560,0.2,139.59,139.45,20.0]
[1720792594863,7.1647,139.58,139.45,20.0]
[1720792595371,0.2,139.59,139.44,48.17317]
[1720792595542,7.1648,139.58,139.44,48.17317]
[1720792595754,21.81,139.59,139.45,1.43339302]
[1720792595755,0.2,139.59,139.45,1.43339302]
[1720792596377,0.2,139.59,139.45,23.04339302]
[1720792596753,0.2,139.59,139.46,65.0]
[1720792596957,0.2,139.59,139.47,1.43287572]
[1720792597155,0.2,139.59,139.45,20.0]
[1720792597384,0.2,139.59,139.46,23.04298824]
[1720792597550,0.2,139.59,139.47,41.61]
[1720792597754,0.2,139.59,139.47,20.0]
[1720792597957,28.7758,139.56,139.44,2.87317]
[1720792598157,29.6506,139.58,139.44,2.87317]
[1720792598376,22.4862,139.58,139.45,21.834]
[1720792598550,0.2,139.59,139.45,23.26727494]
[1720792598757,0.2,139.59,139.45,67.134]
[1720792599081,0.2,139.59,139.46,1.4329074]
[1720792599395,0.2,139.59,139.46,21.4329074]
[1720792599678,0.2,139.59,139.47,21.61]
[1720792599880,0.2,139.59,139.48,66.43289249]
[1720792600178,0.2,139.59,139.49,1.43289169]
[1720792600760,0.2,139.59,139.5,1.43296033]
[1720792600961,0.2,139.59,139.48,65.0]